bitfinex-derivatives/quotes_SOLF0:USTF0_20241008
["timestamp","ask_amount","ask_price","bid_price","bid_amount"]
[1728400393457,0.12502,143.93,143.9,6.02]
[1728400393969,0.12502,143.93,143.87,6.02]
[1728400395170,0.12502,143.93,143.91,3.4755]
[1728400397175,0.12502,143.93,143.92,3.4753]
[1728400398171,0.12502,143.93,143.87,6.02]
[1728400399075,0.12502,143.93,143.92,3.4753]
[1728400413881,0.12502,143.93,143.86,1.3443]
[1728400413882,0.12502,143.93,143.86,18.0043]
[1728400414185,0.12502,143.93,143.87,6.0]
[1728400414784,0.12502,143.93,143.86,18.0043]
[1728400414973,0.12502,143.93,143.88,3.4763]
[1728400415181,0.12502,143.93,143.86,24.0043]
[1728400416286,0.12502,143.93,143.91,3.4755]
[1728400416786,0.12502,143.93,143.86,24.0043]
[1728400417089,0.12502,143.93,143.92,3.4753]
[1728400417782,0.12502,143.93,143.92,20.1353]
[1728400418581,1.3707,143.98,143.97,3.4741]
[1728400418785,0.12502,143.99,143.97,3.4741]
[1728400418990,0.12502,143.99,143.93,16.66]
[1728400419185,0.12502,143.99,143.98,3.4739]
[1728400428184,6.12502,144.05,143.98,6.0]
[1728400428381,6.12502,144.05,144.03,3.4726]
[1728400428582,0.12502,144.05,143.99,16.66]
[1728400428790,0.12502,144.05,143.99,17.9852]
[1728400428987,0.12502,144.11,144.03,16.66]
[1728400428988,3.4030968,144.1,144.03,16.66]
[1728400429288,0.12502,144.11,144.04,22.66]
[1728400429487,0.12502,144.11,144.09,3.4711]
[1728400430291,0.12502,144.11,144.1,3.471]
[1728400433688,0.12502,144.11,144.08,6.0]
[1728400434792,0.12502,144.11,144.09,3.4712]
[1728400435698,0.12502,144.11,144.1,3.471]
[1728400439998,0.12502,144.17,144.09,16.66]
[1728400440213,0.12502,144.17,144.12,16.66]
[1728400440497,0.12502,144.17,144.13,6.0]
[1728400440811,0.12502,144.17,144.16,3.4695]
[1728400443797,0.12502,144.17,144.15,9.4696]
[1728400444504,0.12502,144.17,144.16,3.4695]
[1728400445603,0.12502,144.17,144.14,5.98]
[1728400446506,0.12502,144.17,144.13,3.4701]
[1728400447007,3.59442,144.17,144.13,3.4701]
[1728400448005,3.4698,144.15,144.12,3.4704]
[1728400448205,16.78502,144.17,144.1,5.98]
[1728400448602,3.4702,144.14,144.1,3.471]
[1728400450714,4.0192,144.13,144.07,5.98]
[1728400450908,4.0192,144.13,144.11,3.4707]
[1728400451311,3.4707,144.12,144.09,3.4711]
[1728400451608,3.4707,144.12,144.07,5.98]
[1728400452112,3.4707,144.12,144.09,3.4711]
[1728400452502,20.6792,144.13,144.07,5.98]
[1728400452809,3.4708,144.11,144.08,3.4713]
[1728400453797,3.4706,144.12,144.09,3.4712]
[1728400455210,3.4706,144.12,144.07,5.98]
[1728400455404,3.4709,144.11,144.08,3.4713]
[1728400456118,3.4707,144.12,144.06,6.0]
[1728400456315,20.6792,144.13,144.06,6.0]
[1728400456516,3.4709,144.11,144.08,3.4713]
[1728400456705,3.4709,144.11,144.06,6.0]
[1728400457010,3.4709,144.11,144.07,3.4715]
[1728400457415,3.4709,144.11,144.06,6.0]
[1728400457615,3.4709,144.11,144.07,3.4715]
[1728400458120,3.4709,144.11,144.06,6.0]
[1728400458311,3.4709,144.11,144.07,3.4715]
[1728400458712,3.4709,144.11,144.06,6.0]
[1728400458911,3.4712,144.1,144.06,9.4719]
[1728400459111,20.6792,144.13,144.06,3.4719]
[1728400460422,3.4711,144.1,144.07,3.4717]
[1728400461015,20.6792,144.13,144.05,0.12502]
[1728400461218,3.4714,144.09,144.05,6.12502]
[1728400461522,20.6792,144.13,144.05,6.12502]
[1728400461919,16.66,144.09,144.05,0.12502]
[1728400463224,3.4719,144.07,144.05,0.12502]
[1728400463717,16.66,144.09,144.05,0.12502]
[1728400463920,6.0,144.12,144.05,0.12502]
[1728400463921,16.66,144.11,144.05,0.12502]
[1728400464421,3.4711,144.1,144.07,3.4716]
[1728400470637,16.66,144.11,144.05,0.12502]
[1728400470938,16.66,144.09,144.05,3.59712]
[1728400471835,3.4716,144.08,144.06,3.4719]
[1728400472031,16.66,144.09,144.05,0.12502]
[1728400472429,20.1314,144.09,144.06,3.4719]
[1728400472624,16.66,144.09,144.06,3.4719]
[1728400472831,3.4717,144.08,144.05,0.12502]
[1728400473031,16.66,144.09,144.05,3.59712]
[1728400473532,3.4716,144.08,144.05,3.59712]
[1728400473929,3.4716,144.08,144.06,3.4719]
[1728400474737,3.4711,144.1,144.08,3.4715]
[1728400474932,16.66,144.11,144.05,0.12502]
[1728400475137,16.66,144.09,144.05,0.12502]
[1728400475838,3.4716,144.08,144.06,3.4718]
[1728400476936,16.66,144.09,144.06,3.4718]
[1728400477139,20.1313,144.09,144.07,3.4717]
[1728400477837,3.4715,144.08,144.06,3.4718]
[1728400478541,16.66,144.09,144.05,0.12502]
[1728400479139,3.4719,144.06,144.05,0.12502]
[1728400479639,4.814,144.06,144.05,0.12502]
[1728400480932,4.814,144.06,143.99,6.10502]
[1728400480933,18.0021,144.06,143.99,6.10502]
[1728400481134,18.0021,144.06,144.01,3.4729]
[1728400481532,3.4726,144.04,144.01,3.4729]
[1728400482243,3.4726,144.04,144.0,3.4733]
[1728400482543,3.4726,144.04,143.99,6.10502]
[1728400483329,3.4726,144.04,143.99,0.12502]
[1728400483638,3.4726,144.04,144.01,3.4729]
[1728400484145,3.4722,144.05,144.02,3.4729]
[1728400484335,3.4722,144.05,143.99,0.12502]
[1728400484637,3.4722,144.05,144.0,5.8220419]
[1728400484844,18.0021,144.06,143.99,0.12502]
[1728400485037,18.0021,144.06,144.0,5.8231939]
[1728400485237,18.0021,144.06,144.01,5.8231939]
[1728400485446,18.0021,144.06,144.02,3.4728]
[1728400485744,3.4723,144.05,144.02,3.4728]
[1728400486441,1.3421,144.06,144.04,3.4723]
[1728400486647,10.67,144.05,144.01,10.67]
[1728400486848,10.67,144.05,144.03,3.4726]
[1728400487743,10.67,144.05,144.04,3.4724]
[1728400488343,10.67,144.05,143.99,0.12502]
[1728400488344,12.0121,144.06,144.05,3.4722]
[1728400488547,12.0121,144.06,144.02,10.67]
[1728400488847,12.0121,144.06,144.01,10.67]
[1728400488848,10.67,144.05,144.01,10.67]
[1728400489049,10.67,144.04,144.02,5.84100412]
[1728400489259,10.67,144.04,143.99,0.12502]
[1728400489260,10.67,144.03,143.99,0.12502]
[1728400489557,10.67,144.0,143.99,0.12502]
[1728400489756,4.77921685,144.06,143.99,0.12502]
[1728400489946,10.67,144.01,143.99,0.12502]
[1728400490149,10.67,144.01,144.0,3.4732]
[1728400490449,20.1528,144.03,144.0,3.4732]
[1728400490655,20.1528,144.03,143.99,0.12502]
[1728400490955,16.68,144.03,144.01,3.4731]
[1728400491657,5.98,144.04,144.02,3.4729]
[1728400492144,5.98,144.04,143.99,0.12502]
[1728400492349,3.4727,144.03,144.01,3.4731]
[1728400494562,9.4526,144.04,144.01,3.4731]
[1728400495861,5.98,144.04,144.02,3.4727]
[1728400496057,16.68,144.05,143.99,0.12502]
[1728400496058,20.1523,144.05,143.99,0.12502]
[1728400496262,20.1523,144.05,144.0,5.84218878]
[1728400496567,20.1523,144.05,144.02,3.4728]
[1728400497367,20.1523,144.05,143.99,0.12502]
[1728400497660,20.1523,144.05,144.03,3.4726]
[1728400497860,16.68,144.05,143.99,0.12502]
[1728400498059,1.3421,144.06,144.04,3.4723]
[1728400498757,4.8142,144.06,144.04,3.4723]
[1728400499650,4.8142,144.06,143.99,0.12502]
[1728400499651,16.68,144.05,143.99,0.12502]
[1728400499854,16.68,144.02,143.99,3.59862]
[1728400500157,16.68,144.02,143.99,0.12502]
[1728400500970,20.1534,144.0,143.99,0.12502]
[1728400501961,33.36,144.0,143.93,0.12502]
[1728400502163,16.68,143.96,143.93,0.12502]
[1728400502372,3.4746,143.95,143.93,0.12502]
[1728400502562,16.68,143.96,143.94,3.4748]
[1728400503059,16.68,143.96,143.93,0.12502]
[1728400503264,16.68,143.96,143.94,3.4748]
[1728400503469,20.1545,143.96,143.93,0.12502]
[1728400503669,16.68,143.96,143.94,3.4748]
[1728400503865,8.7177,143.99,143.93,0.12502]
[1728400504062,16.68,143.97,143.93,0.12502]
[1728400504260,18.0562,143.99,143.93,0.12502]
[1728400504562,1.3762,143.99,143.94,11.81394637]
[1728400504767,16.68,144.01,143.94,5.98]
[1728400504960,16.68,144.01,143.95,5.83279466]
[1728400505262,20.1533,144.01,143.94,5.98]
[1728400505461,20.1533,144.01,143.97,3.474]
[1728400505660,16.68,144.01,143.94,5.98]
[1728400505865,18.1172,144.03,143.95,5.83217771]
[1728400506072,18.1172,144.03,144.0,3.4732]
[1728400506365,21.5899,144.03,144.0,3.4732]
[1728400507462,18.1172,144.03,143.94,22.66]
[1728400507667,16.68,144.01,143.95,5.82922943]
[1728400507861,16.68,144.01,143.96,5.82922943]
[1728400508171,16.68,144.01,143.94,5.98]
[1728400508362,16.68,144.01,143.95,5.83044325]
[1728400508562,16.68,144.01,143.96,3.4743]
[1728400508563,3.4735,144.0,143.96,3.4743]
[1728400508763,16.68,144.01,143.96,3.4743]
[1728400508963,16.68,144.01,143.94,5.98]
[1728400509164,3.4736,144.0,143.95,5.83123472]
[1728400509364,16.68,144.01,143.94,5.98]
[1728400509566,16.68,143.99,143.95,5.8283627]
[1728400509764,1.4372,144.03,143.93,0.12502]
[1728400509765,16.68,143.97,143.94,3.4747]
[1728400510270,16.68,143.97,143.93,0.12502]
[1728400510471,16.68,143.99,143.94,5.83148267]
[1728400510771,16.68,143.99,143.93,0.12502]
[1728400510962,16.68,143.99,143.94,5.83199581]
[1728400511166,16.68,143.99,143.93,0.12502]
[1728400511359,16.68,143.99,143.94,5.83305373]
[1728400511566,16.68,143.99,143.93,0.12502]
[1728400512074,0.12502,144.05,143.94,16.68]
[1728400512264,0.12502,144.05,143.98,16.68]
[1728400512459,0.12502,144.05,143.98,26.21051614]
[1728400512666,0.12502,144.05,143.99,5.83028581]
[1728400512875,16.80502,144.05,144.0,5.83028581]
[1728400513064,16.80502,144.05,143.99,3.4735]
[1728400513267,3.4728,144.03,143.99,3.4735]
[1728400513470,16.80502,144.05,143.98,5.98]
[1728400513671,16.80502,144.05,144.0,3.4734]
[1728400513879,3.4726,144.04,144.0,3.4734]
[1728400514175,16.80502,144.05,144.0,3.4734]
[1728400514368,3.4728,144.03,144.0,3.4734]
[1728400514979,16.80502,144.05,143.98,5.98]
[1728400515164,16.80502,144.05,143.99,5.83197724]
[1728400515361,16.80502,144.05,143.98,5.98]
[1728400515769,16.68,144.02,143.99,5.83535101]
[1728400515977,16.68,144.0,143.9,23.6316]
[1728400516278,5.98,144.04,143.94,5.83482319]
[1728400516279,16.68,143.98,143.94,5.83482319]
[1728400516472,16.68,143.98,143.95,5.83482319]
[1728400516676,20.154,143.98,143.95,3.4745]
[1728400516877,20.154,143.98,143.92,5.98]
[1728400517079,20.154,143.98,143.94,5.8396689]
[1728400517272,3.4742,143.97,143.94,3.4747]
[1728400517471,16.68,143.98,143.95,5.84058422]
[1728400517765,20.1546,143.96,143.92,3.4752]
[1728400517975,16.68,143.96,143.89,5.98]
[1728400518570,16.68,143.96,143.94,3.4747]
[1728400518767,16.68,143.96,143.89,5.98]
[1728400518768,16.68,143.98,143.89,22.66]
[1728400518975,16.68,143.98,143.94,5.83833927]
[1728400519276,20.1539,143.98,143.95,3.4745]
[1728400519873,20.1539,143.98,143.89,22.66]
[1728400520668,20.1539,143.98,143.95,3.4744]
[1728400520868,16.68,143.96,143.89,5.98]
[1728400521076,16.68,143.96,143.94,3.4748]
[1728400522070,16.68,143.96,143.88,0.5783]
[1728400522275,16.68,143.96,143.89,5.96]
[1728400522775,3.4748,143.94,143.92,3.4751]
[1728400523773,3.4748,143.94,143.88,5.96]
[1728400524475,3.4748,143.94,143.87,7.43932]
[1728400524476,16.68,143.94,143.87,7.43932]
[1728400524683,16.68,143.94,143.88,5.83115889]
[1728400524874,16.68,143.94,143.89,5.83115889]
[1728400525076,3.4751,143.93,143.87,7.43932]
[1728400525273,3.4751,143.93,143.88,5.82988664]
[1728400525582,3.4751,143.93,143.9,3.4756]
[1728400525980,3.4754,143.92,143.87,7.43932]
[1728400526277,16.68,143.94,143.87,7.43932]
[1728400526479,3.4752,143.93,143.88,5.83006648]
[1728400526673,16.68,143.94,143.87,7.43932]
[1728400526874,16.68,143.94,143.88,5.83504356]
[1728400527085,3.4751,143.93,143.87,6.08502]
[1728400527383,3.4751,143.93,143.9,3.4757]
[1728400528681,3.4751,143.93,143.91,3.4755]
[1728400529176,3.4751,143.93,143.9,3.4757]
[1728400529579,3.4755,143.92,143.87,6.08502]
[1728400529784,3.4755,143.92,143.89,3.4759]
[1728400530482,3.4755,143.92,143.9,3.4757]
[1728400531075,16.68,143.94,143.91,3.4755]
[1728400531281,16.68,143.94,143.87,0.12502]
[1728400531689,20.1549,143.94,143.87,0.12502]
[1728400532383,20.1549,143.94,143.91,3.4754]
[1728400532576,18.0601,143.95,143.87,6.08502]
[1728400532780,21.5348,143.95,143.88,5.83700513]
[1728400532990,21.5348,143.95,143.87,22.76502]
[1728400533198,18.0601,143.95,143.88,5.8379258]
[1728400533383,18.0601,143.95,143.89,5.8379258]
[1728400533583,18.0601,143.95,143.9,5.8379258]
[1728400533786,18.0601,143.95,143.93,3.475]
[1728400533987,16.68,143.97,143.87,22.76502]
[1728400534189,16.68,143.97,143.95,3.4745]
[1728400534895,16.68,143.97,143.91,5.96]
[1728400535194,18.21312,143.99,143.92,5.83551922]
[1728400535393,18.21312,143.99,143.93,5.83551922]
[1728400535689,18.21312,143.99,143.94,5.8340172]
[1728400535898,18.21312,143.99,143.91,22.64]
[1728400536086,18.21312,143.99,143.92,5.83446186]
[1728400536396,18.21312,143.99,143.93,5.83446186]
[1728400536695,21.68692,143.99,143.91,22.64]
[1728400536892,21.68692,143.99,143.92,5.83610996]
[1728400537086,18.21312,143.99,143.97,3.4741]
[1728400538393,18.21312,143.99,143.92,3.54902576]
[1728400538585,1.53312,143.99,143.98,3.4739]
[1728400538892,0.12502,143.99,143.92,3.54902576]
[1728400539092,0.12502,143.99,143.97,3.4741]
[1728400539394,0.12502,143.99,143.92,3.54902576]
[1728400539590,3.4739,143.98,143.93,5.8323768]
[1728400539783,3.4739,143.98,143.94,5.8323768]
[1728400539984,3.4739,143.98,143.91,5.96]
[1728400539985,16.68,143.98,143.91,5.96]
[1728400540194,3.4742,143.97,143.92,5.83338308]
[1728400540387,3.4742,143.97,143.93,5.83338308]
[1728400540590,3.4742,143.97,143.94,3.4746]
[1728400540981,20.154,143.98,143.91,5.96]
[1728400541291,16.68,143.98,143.92,5.83382863]
[1728400541492,16.68,143.98,143.93,5.83382863]
[1728400541688,16.68,143.98,143.96,3.4742]
[1728400541993,0.12502,143.99,143.92,3.50973315]
[1728400542293,0.12502,143.99,143.96,3.4742]
[1728400542883,3.59872,143.99,143.96,3.4742]
[1728400543888,3.4747,143.95,143.92,3.4753]
[1728400544090,4.1505,143.98,143.9,5.96]
[1728400544295,16.68,143.97,143.91,5.84032143]
[1728400544591,16.68,143.97,143.92,5.84032143]
[1728400544800,16.68,143.97,143.93,5.84032143]
[1728400544983,16.68,143.97,143.95,3.4745]
[1728400545187,26.7905,143.98,143.9,5.96]
[1728400545387,24.09,143.98,143.91,5.83968339]
[1728400545587,18.13,143.98,143.95,3.4744]
[1728400545788,18.13,143.98,143.9,5.96]
[1728400545994,18.13,143.98,143.91,5.83946236]
[1728400546189,18.13,143.98,143.92,5.83946236]
[1728400546382,18.13,143.98,143.93,5.83946236]
[1728400546586,18.13,143.98,143.94,5.83946236]
[1728400546786,21.6039,143.98,143.95,3.4744]
[1728400547196,21.6039,143.98,143.9,5.96]
[1728400547402,21.6039,143.98,143.91,5.84508845]
[1728400547591,21.6039,143.98,143.93,3.4749]
[1728400547790,21.6039,143.98,143.94,5.84508845]
[1728400547990,21.6039,143.98,143.9,5.96]
[1728400548198,21.6039,143.98,143.95,3.4744]
[1728400551196,18.13,143.98,143.92,5.96]
[1728400551395,16.68,143.95,143.93,5.85664835]
[1728400551696,16.68,143.95,143.9,5.96]
[1728400551900,20.1544,143.96,143.94,3.4747]
[1728400552100,16.68,143.96,143.94,3.4747]
[1728400552301,18.13,143.98,143.9,5.96]
[1728400552497,18.13,143.98,143.91,5.85995018]
[1728400552701,18.13,143.98,143.92,5.85995018]
[1728400552887,18.13,143.98,143.96,3.4742]
[1728400553499,21.604,143.98,143.96,3.4742]
[1728400554703,18.13,143.98,143.9,5.96]
[1728400554902,18.13,143.98,143.95,3.4744]
[1728400555399,21.6041,143.98,143.95,3.4744]
[1728400555598,18.13,143.98,143.95,3.4744]
[1728400555799,21.604,143.98,143.95,3.4744]
[1728400557099,16.68,143.96,143.91,5.96]
[1728400557304,3.4746,143.95,143.93,3.475]
[1728400557698,3.4746,143.95,143.94,5.86709963]
[1728400557894,3.4746,143.95,143.94,5.86758019]
[1728400558397,3.4746,143.95,143.93,3.475]
[1728400559995,3.4746,143.95,143.94,5.87022835]
[1728400560301,2.6962,143.97,143.87,8.42722]
[1728400560302,5.96,143.96,143.87,6.08502]
[1728400560606,16.68,143.93,143.88,5.87200542]
[1728400560798,16.68,143.93,143.87,6.08502]
[1728400561206,16.68,143.93,143.88,5.86871775]
[1728400561408,16.68,143.93,143.89,5.86871775]
[1728400561599,16.68,143.93,143.9,5.86871775]
[1728400561798,16.68,143.93,143.91,5.86871775]
[1728400562106,16.68,143.93,143.92,9.34401775]
[1728400562306,16.68,143.93,143.92,5.86871775]
[1728400562599,20.1551,143.93,143.92,5.86871775]
[1728400563008,16.68,143.93,143.92,5.86871775]
[1728400563399,16.68,143.93,143.92,9.34401775]
[1728400563793,20.1551,143.93,143.92,5.86871775]
[1728400564095,33.36,143.93,143.87,0.12502]
[1728400564300,16.68,143.89,143.87,0.12502]
[1728400564501,16.68,143.89,143.88,3.4762]
[1728400565503,16.68,143.89,143.87,3.60142]
[1728400565703,20.1561,143.89,143.87,0.12502]
[1728400567708,20.1562,143.89,143.87,0.12502]
[1728400568319,16.68,143.89,143.87,0.12502]
[1728400568624,1.3892,143.92,143.87,0.12502]
[1728400569224,1.3892,143.92,143.87,6.08502]
[1728400569827,16.68,143.95,143.93,3.475]
[1728400570126,16.68,143.95,143.87,6.08502]
[1728400570515,3.4749,143.94,143.91,3.4754]
[1728400570827,3.4749,143.94,143.87,6.08502]
[1728400571322,16.68,143.94,143.87,6.08502]
[1728400571727,3.4752,143.93,143.9,3.4758]
[1728400573113,16.68,143.94,143.87,6.08502]
[1728400573322,16.68,143.95,143.87,6.08502]
[1728400573729,20.1547,143.95,143.92,3.4752]
[1728400574116,20.8367,143.97,143.89,20.13156072]
[1728400574324,18.1243,143.97,143.89,16.68]
[1728400574626,18.1243,143.97,143.88,9.7221]
[1728400574827,3.4746,143.95,143.92,3.4752]
[1728400575016,16.68,143.94,143.87,0.12502]
[1728400575218,16.68,143.92,143.87,6.08502]
[1728400575420,20.1549,143.94,143.9,3.4756]
[1728400575729,5.96,143.95,143.87,22.76502]
[1728400576733,9.4348,143.95,143.87,22.76502]
[1728400577032,5.96,143.95,143.87,22.76502]
[1728400577438,16.68,143.96,143.87,22.76502]
[1728400577622,20.1544,143.96,143.93,3.4749]
[1728400578532,16.68,143.96,143.87,22.76502]
[1728400578730,1.4443,143.97,143.89,16.68]
[1728400578925,1.4443,143.97,143.89,20.14835069]
[1728400579125,1.4443,143.97,143.95,3.4744]
[1728400581136,1.4443,143.97,143.91,5.96]
[1728400581333,4.9184,143.97,143.94,3.4747]
[1728400582436,20.1545,143.96,143.93,3.475]
[1728400582640,16.68,143.96,143.93,3.475]
[1728400583227,16.68,143.94,143.88,5.94]
[1728400583435,16.68,143.92,143.87,0.12502]
[1728400583640,16.68,143.9,143.87,0.12502]
[1728400583839,20.1562,143.89,143.87,0.12502]
[1728400584137,16.68,143.89,143.87,0.12502]
[1728400584548,16.68,143.89,143.81,0.12502]
[1728400584844,16.68,143.87,143.81,0.12502]
[1728400585030,1.3229,143.88,143.86,3.4768]
[1728400585236,16.68,143.89,143.86,3.4768]
[1728400585436,20.1561,143.89,143.85,3.4768]
[1728400585640,20.1561,143.89,143.82,5.94]
[1728400586035,20.1561,143.89,143.84,3.4772]
[1728400586245,20.1561,143.89,143.82,5.94]
[1728400587135,3.4768,143.86,143.81,0.12502]
[1728400587640,3.4768,143.86,143.82,3.4776]
[1728400588144,20.1566,143.87,143.83,3.4774]
[1728400588534,16.68,143.85,143.81,0.12502]
[1728400588738,20.1571,143.85,143.81,3.60292]
[1728400588943,16.68,143.85,143.81,3.60292]
[1728400589140,16.68,143.85,143.81,0.12502]
[1728400589344,16.68,143.83,143.81,0.12502]
[1728400590447,20.1575,143.83,143.81,0.12502]
[1728400591044,16.68,143.83,143.81,0.12502]
[1728400591744,16.68,143.83,143.81,3.60282]
[1728400591946,16.68,143.83,143.81,0.12502]
[1728400592347,22.62,143.83,143.73,3.52720713]
[1728400592549,16.68,143.81,143.71,93.1588]
[1728400592847,16.68,143.81,143.74,5.94]
[1728400593049,16.68,143.77,143.71,1.4388]
[1728400593744,1.3973,143.78,143.7,1.4211]
[1728400593940,16.68,143.77,143.7,1.4211]
[1728400594141,20.1591,143.77,143.7,1.4211]
[1728400594850,16.68,143.77,143.75,3.60442]
[1728400595045,1.3973,143.78,143.75,0.12502]
[1728400595553,7.3849,143.8,143.75,0.12502]
[1728400595757,16.68,143.82,143.75,0.12502]
[1728400596054,16.68,143.82,143.81,3.478]
[1728400596253,16.68,143.82,143.75,16.80502]
[1728400596451,16.68,143.82,143.8,3.478]
[1728400596661,16.68,143.82,143.75,16.80502]
[1728400596951,16.68,143.82,143.8,3.4781]
[1728400597452,1.34,143.83,143.76,3.45096543]
[1728400597648,1.34,143.83,143.78,3.4787]
[1728400597955,1.34,143.83,143.76,3.45096543]
[1728400598143,1.34,143.83,143.8,3.4781]
[1728400598445,1.34,143.83,143.76,3.4756599]
[1728400598851,1.34,143.83,143.81,3.4778]
[1728400599056,1.34,143.83,143.76,3.4756599]
[1728400599358,1.34,143.83,143.8,3.478]
[1728400599556,1.34,143.83,143.76,3.50104999]
[1728400599952,1.34,143.83,143.78,3.4787]
[1728400600158,1.34,143.83,143.76,3.50104999]
[1728400600362,1.4466,143.85,143.77,16.68]
[1728400600652,7.4066,143.85,143.78,5.96]
[1728400601160,7.4066,143.85,143.82,3.4776]
[1728400601965,7.4066,143.85,143.78,5.96]
[1728400602254,7.4066,143.85,143.83,3.4775]
[1728400602763,18.0932,143.86,143.83,3.4775]
[1728400603060,6.08502,143.87,143.79,16.68]
[1728400603061,0.12502,143.87,143.79,16.68]
[1728400603260,0.12502,143.87,143.79,18.0333]
[1728400603464,0.12502,143.87,143.85,3.4769]
[1728400603663,0.12502,143.87,143.79,18.0333]
[1728400603963,0.12502,143.87,143.86,3.4768]
[1728400604960,0.12502,143.87,143.82,3.4775]
[1728400605172,16.68,143.84,143.79,1.3533]
[1728400605659,16.68,143.84,143.78,5.96]
[1728400606152,16.68,143.84,143.8,3.4781]
[1728400606455,16.68,143.84,143.75,16.80502]
[1728400606456,16.68,143.82,143.75,0.12502]
[1728400606660,16.68,143.76,143.75,0.12502]
[1728400607055,5.94,143.77,143.75,0.12502]
[1728400607256,22.64,143.78,143.75,3.60432]
[1728400607454,3.54725862,143.81,143.75,3.60432]
[1728400607455,3.54725862,143.81,143.75,0.12502]
[1728400607768,22.64,143.8,143.78,3.4786]
[1728400608260,22.64,143.8,143.77,3.4789]
[1728400608563,16.68,143.8,143.75,0.12502]
[1728400608762,16.68,143.82,143.79,3.4784]
[1728400609459,16.68,143.82,143.8,3.4781]
[1728400609666,7.2871,143.83,143.8,3.4781]
[1728400611158,10.7646,143.83,143.8,3.4781]
[1728400613763,7.2871,143.83,143.76,1.3422]
[1728400613963,16.68,143.78,143.75,0.12502]
[1728400615069,16.68,143.78,143.76,3.479]
[1728400616251,16.68,143.78,143.77,3.4789]
[1728400616455,22.62,143.81,143.75,0.12502]
[1728400616957,26.0981,143.81,143.75,0.12502]
[1728400617858,22.62,143.82,143.8,3.4781]
[1728400618161,16.68,143.81,143.75,6.06502]
[1728400619064,7.2671,143.83,143.75,0.12502]
[1728400619370,1.3271,143.83,143.76,16.68]
[1728400619668,1.3271,143.83,143.81,3.4778]
[1728400620371,1.3271,143.83,143.77,7.3339]
[1728400620670,22.62,143.85,143.78,1.418]
[1728400620872,26.0972,143.85,143.81,3.4779]
[1728400621566,3.4774,143.84,143.8,3.4781]
[1728400621763,3.4774,143.84,143.78,1.418]
[1728400622261,26.0971,143.85,143.81,3.4778]
[1728400622659,22.62,143.85,143.81,3.4778]
[1728400623059,3.4773,143.84,143.81,3.4778]
[1728400623660,16.68,143.82,143.75,0.12502]
[1728400623860,16.68,143.8,143.75,0.12502]
[1728400624567,16.68,143.8,143.77,3.4788]
[1728400624759,16.68,143.8,143.75,0.12502]
[1728400624959,22.62,143.81,143.75,0.12502]
[1728400625160,5.94,143.83,143.8,3.4781]
[1728400625363,5.94,143.83,143.75,0.12502]
[1728400625669,16.68,143.82,143.75,0.12502]
[1728400625867,5.94,143.83,143.75,0.12502]
[1728400626165,3.4779,143.82,143.75,0.12502]
[1728400626357,5.94,143.83,143.78,3.4785]
[1728400626558,16.68,143.82,143.78,3.4785]
[1728400626965,16.68,143.82,143.75,0.12502]